bitfinex-derivatives/quotes_SOLF0:USTF0_20250114
["timestamp","ask_amount","ask_price","bid_price","bid_amount"]
[1736888880557,2.668,187.49,187.46,2.6683]
[1736888881560,8.8242,187.5,187.37,5.3393]
[1736888881767,1.7104,187.49,187.37,5.3393]
[1736888883065,1.7104,187.49,187.44,2.6686]
[1736888883266,1.7104,187.49,187.35,4.7812]
[1736888883470,2.6685,187.45,187.41,2.669]
[1736888883676,2.6685,187.45,187.35,4.7812]
[1736888883969,2.6685,187.45,187.41,2.669]
[1736888884370,195.0,187.48,187.35,4.7812]
[1736888884676,2.6688,187.43,187.35,4.7812]
[1736888885272,2.6688,187.43,187.39,2.6693]
[1736888885473,2.6687,187.44,187.35,4.7812]
[1736888886370,2.6687,187.44,187.4,2.6692]
[1736888888072,195.0,187.48,187.35,4.7812]
[1736888888267,2.6689,187.43,187.39,2.6693]
[1736888888877,195.0,187.48,187.39,2.6693]
[1736888889173,195.0,187.48,187.3,7.36859353]
[1736888889374,0.8972176,187.47,187.3,10.68869353]
[1736888889574,2.6693,187.4,187.36,2.6698]
[1736888890275,5.52,187.41,187.36,2.6698]
[1736888890476,5.52,187.41,187.37,2.6696]
[1736888890674,5.52,187.41,187.3,3.3201]
[1736888891077,5.52,187.41,187.37,2.6695]
[1736888892280,5.52,187.41,187.38,2.6695]
[1736888893079,8.1891,187.41,187.38,2.6695]
[1736888895578,2.6691,187.41,187.38,2.6695]
[1736888895778,5.52,187.44,187.3,3.3201]
[1736888896379,5.52,187.44,187.32,5.3407]
[1736888896976,8.1887,187.44,187.32,5.3407]
[1736888898183,8.1887,187.44,187.4,2.6691]
[1736888899484,8.1887,187.44,187.41,2.6691]
[1736888899988,2.6687,187.44,187.41,2.6691]
[1736888900289,148.40916402,187.55,187.37,5.3393]
[1736888900482,148.40916402,187.56,187.38,19.70404721]
[1736888900682,148.40916402,187.56,187.39,12.63254721]
[1736888900885,148.40916402,187.56,187.4,17.97104721]
[1736888901080,148.40916402,187.56,187.4,5.3385]
[1736888901286,1.6128,187.61,187.41,12.63254721]
[1736888901486,1.6128,187.61,187.57,2.6668]
[1736888902283,3.2301,187.63,187.58,2.6667]
[1736888903982,3.2301,187.63,187.59,2.6665]
[1736888904694,1.6825,187.66,187.48,1.5607]
[1736888905591,1.6825,187.66,187.49,3.3313]
[1736888905793,5.52,187.7,187.49,3.3313]
[1736888906183,2.6653,187.68,187.62,2.666]
[1736888906782,5.52,187.7,187.52,100.36723718]
[1736888906986,2.6656,187.66,187.6,2.6663]
[1736888907182,2.6656,187.66,187.52,100.36723718]
[1736888907791,2.6656,187.66,187.6,2.6663]
[1736888912701,2.6656,187.66,187.61,2.6663]
[1736888913792,2.6656,187.66,187.52,100.36723718]
[1736888913996,2.6656,187.66,187.62,2.6661]
[1736888916795,2.6656,187.66,187.56,2.6669]
[1736888916995,2.6656,187.66,187.52,100.36723718]
[1736888917499,5.52,187.7,187.52,100.36723718]
[1736888917698,2.6657,187.65,187.6,2.6663]
[1736888922304,2.6657,187.65,187.61,2.6662]
[1736888922900,2.6657,187.66,187.61,2.6662]
[1736888923602,5.52,187.7,187.61,2.6662]
[1736888923603,2.6657,187.65,187.61,2.6662]
[1736888926008,1.6248,187.73,187.54,5.5]
[1736888926203,10.62217057,187.78,187.55,1.6877]
[1736888926402,0.89584847,187.77,187.55,1.6877]
[1736888926603,2.6645,187.74,187.69,2.665]
[1736888927507,2.6645,187.74,187.61,5.5]
[1736888927712,2.6645,187.74,187.7,2.6649]
[1736888929514,2.6646,187.73,187.7,2.6649]
[1736888930701,16.12217057,187.78,187.57,3.2938]
[1736888930906,0.89573026,187.77,187.57,8.7938]
[1736888931309,4.9891,187.76,187.57,8.7938]
[1736888931612,2.6652,187.69,187.57,8.7938]
[1736888931809,4.9891,187.76,187.57,8.7938]
[1736888932111,2.6651,187.7,187.66,2.6654]
[1736888934209,2.6652,187.69,187.66,2.6654]
[1736888934415,2.6652,187.69,187.65,2.6657]
[1736888935813,4.9891,187.76,187.57,8.7938]
[1736888936813,4.9891,187.76,187.58,4.73093103]
[1736888937410,4.9891,187.76,187.57,16.16239353]
[1736888937815,4.9891,187.76,187.58,5.3334]
[1736888938011,4.9891,187.76,187.57,10.66239353]
[1736888938315,2.6654,187.67,187.63,2.6658]
[1736888940021,2.6654,187.67,187.64,2.6658]
[1736888942712,5.5,187.71,187.57,1.6193]
[1736888942915,5.5,187.71,187.55,31.16207412]
[1736888943114,0.89604919,187.7,187.55,31.16207412]
[1736888943312,2.6664,187.6,187.55,7.36859353]
[1736888943811,2.6664,187.6,187.56,2.6669]
[1736888944017,2.6666,187.59,187.56,2.6669]
[1736888944217,5.5,187.63,187.52,100.36723718]
[1736888945116,2.6667,187.59,187.54,2.6672]
[1736888946215,5.5,187.63,187.52,100.36723718]
[1736888946811,2.6661,187.62,187.52,100.36723718]
[1736888947323,8.1661,187.63,187.58,2.6666]
[1736888947525,2.6661,187.63,187.52,100.36723718]
[1736888948022,2.6661,187.63,187.55,2.6671]
[1736888948225,2.6661,187.63,187.52,100.36723718]
[1736888948614,2.6661,187.63,187.58,2.6666]
[1736888948818,2.6658,187.65,187.52,100.36723718]
[1736888949516,2.6658,187.65,187.61,2.6661]
[1736888949718,2.6656,187.66,187.61,2.6661]
[1736888951427,2.6656,187.66,187.52,105.86723718]
[1736888951620,2.6656,187.66,187.62,2.6661]
[1736888951816,205.29763005,187.67,187.52,105.86723718]
[1736888952017,205.29763005,187.67,187.52,100.36723718]
[1736888952426,2.6663,187.61,187.52,100.36723718]
[1736888954221,2.6663,187.61,187.57,2.6667]
[1736888955728,2.6662,187.62,187.52,100.36723718]
[1736888956628,2.6662,187.62,187.58,2.6667]
[1736888957931,205.29763005,187.67,187.52,100.36723718]
[1736888959035,2.6659,187.64,187.56,2.6669]
[1736888959228,205.29763005,187.67,187.52,100.36723718]
[1736888959940,205.29763005,187.67,187.57,2.6667]
[1736888960742,2.6662,187.62,187.58,2.6667]
[1736888963941,2.6663,187.61,187.58,2.6667]
[1736888964141,195.0,187.66,187.52,100.36723718]
[1736888964337,195.0,187.66,187.57,2.6668]
[1736888964940,2.6665,187.6,187.57,2.6668]
[1736888966944,2.6667,187.58,187.56,2.6669]
[1736888967248,5.5,187.61,187.52,100.36723718]
[1736888967843,2.6669,187.57,187.54,2.6672]
[1736888968146,5.5,187.61,187.52,100.36723718]
[1736888968446,2.667,187.56,187.53,2.6673]
[1736888969148,2.6667,187.58,187.5,3.2884]
[1736888969347,5.5,187.61,187.5,3.2884]
[1736888969549,2.6666,187.59,187.56,2.6669]
[1736888970844,5.5,187.63,187.5,3.2884]
[1736888971146,5.5,187.64,187.5,3.2884]
[1736888971743,5.5,187.64,187.58,2.6666]
[1736888971744,2.6662,187.62,187.58,2.6666]
[1736888972848,5.5,187.64,187.58,2.6666]
[1736888973052,5.5,187.64,187.5,3.2884]
[1736888973552,2.6666,187.59,187.5,3.2884]
[1736888975153,2.6664,187.6,187.56,2.6669]
[1736888975453,2.6664,187.6,187.5,3.2884]
[1736888975850,2.6663,187.61,187.57,2.6667]
[1736888976751,5.5,187.64,187.57,2.6667]
[1736888976951,2.6664,187.6,187.57,2.6667]
[1736888978357,2.6666,187.59,187.55,2.667]
[1736888980960,2.6667,187.58,187.55,2.667]
[1736888986961,5.5,187.64,187.5,3.2884]
[1736888987261,5.5,187.64,187.47,7.36859353]
[1736888987460,2.6674,187.54,187.51,2.6676]
[1736888987651,5.5,187.57,187.47,7.36859353]
[1736888988058,5.5,187.57,187.46,12.63495109]
[1736888988255,8.1669,187.57,187.54,2.6672]
[1736888990364,5.5,187.57,187.46,12.63495109]
[1736888990663,5.5,187.57,187.45,29.47437412]
[1736888991163,2.6677,187.51,187.45,29.47437412]
[1736888991365,2.6677,187.51,187.44,9.97764899]
[1736888991562,2.6677,187.51,187.46,2.6684]
[1736888991763,2.6677,187.51,187.44,9.97764899]
[1736888992765,2.6677,187.51,187.47,2.6682]
[1736888993162,2.6678,187.5,187.47,2.6682]
[1736888993765,2.6678,187.51,187.47,2.6682]
[1736888998764,5.5,187.57,187.44,9.97764899]
[1736888998974,5.5,187.57,187.38,10.56329353]
[1736888999161,5.5,187.57,187.38,12.15529353]
[1736888999366,2.6685,187.46,187.42,2.6688]
[1736888999776,5.5,187.48,187.42,2.6688]
[1736889000571,2.6686,187.45,187.42,2.6688]
[1736889001371,5.5,187.48,187.44,2.6686]
[1736889001561,5.5,187.48,187.38,3.1526]
[1736889001768,8.8644,187.54,187.38,3.1526]
[1736889002067,2.6676,187.52,187.38,3.1526]
[1736889002970,2.6679,187.5,187.42,2.6688]
[1736889003271,8.8644,187.54,187.38,3.1526]
[1736889004472,2.6681,187.49,187.38,3.1526]
[1736889005068,8.8644,187.54,187.38,3.1526]
[1736889005274,203.8644,187.54,187.38,3.1526]
[1736889005761,2.6683,187.47,187.38,3.1526]
[1736889006673,2.6683,187.47,187.43,2.6688]
[1736889009676,2.6683,187.47,187.38,3.1526]
[1736889009876,2.6683,187.47,187.43,2.6687]
[1736889010175,195.0,187.52,187.38,3.1526]
[1736889010378,195.0,187.52,187.33,8.99249353]
[1736889010577,2.6688,187.44,187.33,12.18039353]
[1736889010781,5.5,187.46,187.33,12.18039353]
[1736889010981,5.5,187.46,187.33,4.8118]
[1736889011174,5.5,187.46,187.33,3.1879]
[1736889011482,5.009,187.45,187.33,3.1879]
[1736889012280,2.6692,187.41,187.37,2.6697]
[1736889012480,5.009,187.45,187.33,3.1879]
[1736889013482,2.6693,187.4,187.36,2.6698]
[1736889014679,2.6693,187.4,187.33,3.1879]
[1736889014880,2.6693,187.4,187.37,2.6696]
[1736889017690,5.009,187.45,187.33,3.1879]
[1736889018286,2.6689,187.43,187.33,3.1879]
[1736889018788,2.6689,187.43,187.39,2.6693]
[1736889019788,2.6689,187.43,187.4,2.6692]
[1736889019984,5.3337,187.58,187.33,3.1879]
[1736889020181,3.2937,187.51,187.33,3.1879]
[1736889020389,5.5,187.5,187.33,3.1879]
[1736889020588,2.6682,187.48,187.33,3.1879]
[1736889020885,5.5,187.5,187.33,3.1879]
[1736889021086,2.6684,187.46,187.33,3.1879]
[1736889021289,7.1085,187.5,187.33,3.1879]
[1736889021991,7.1085,187.5,187.4,2.6692]
[1736889022689,2.6688,187.44,187.34,94.15029615]
[1736889022982,202.1085,187.5,187.34,94.15029615]
[1736889023382,2.6682,187.48,187.44,2.6685]
[1736889023790,202.1085,187.5,187.44,2.6685]
[1736889024195,2.6683,187.47,187.44,2.6685]
[1736889024396,202.1085,187.5,187.43,2.6688]
[1736889025789,2.6684,187.46,187.43,2.6688]
[1736889025994,202.1085,187.5,187.43,2.6688]
[1736889026594,2.6683,187.47,187.43,2.6688]
[1736889027899,2.6683,187.47,187.44,2.6686]
[1736889029501,202.1085,187.5,187.34,99.65029615]
[1736889029701,2.6685,187.46,187.34,99.65029615]
[1736889030498,202.1085,187.5,187.34,99.65029615]
[1736889030694,7.1085,187.5,187.34,94.15029615]
[1736889031092,2.6692,187.41,187.34,94.15029615]
[1736889032894,2.6695,187.39,187.35,2.6699]
[1736889033297,5.5,187.43,187.35,2.6699]
[1736889033500,2.6695,187.39,187.35,2.6699]
[1736889034505,5.5,187.43,187.36,2.6698]
[1736889034704,2.6693,187.4,187.36,2.6698]
[1736889034906,5.5,187.43,187.34,94.15029615]
[1736889035605,2.6694,187.39,187.35,2.6699]
[1736889036406,2.6694,187.39,187.36,2.6698]
[1736889039304,2.6699,187.36,187.32,2.6703]
[1736889039610,5.5,187.36,187.28,29.47437412]
[1736889039906,195.0,187.35,187.28,29.47437412]
[1736889040208,196.6476,187.35,187.28,29.47437412]
[1736889040405,3.2064,187.34,187.22,7.36859353]
[1736889040708,2.6707,187.3,187.25,2.6714]
[1736889041602,5.8765,187.34,187.29,2.6707]
[1736889042107,3.2064,187.34,187.29,2.6707]
[1736889042307,2.6703,187.33,187.29,2.6707]
[1736889042900,2.6707,187.3,187.25,2.6713]
[1736889043406,2.6707,187.3,187.17,128.5685233]
[1736889043608,2.6707,187.3,187.26,2.6712]
[1736889044005,2.6706,187.31,187.27,2.6711]
[1736889044206,3.2064,187.34,187.17,99.09414918]
[1736889044709,2.6708,187.29,187.25,2.6713]
[1736889045213,2.6707,187.3,187.17,99.09414918]
[1736889045412,2.6707,187.3,187.26,2.6712]
[1736889047012,2.6707,187.3,187.17,99.09414918]
[1736889047311,2.6707,187.3,187.25,2.6713]
[1736889049004,2.6707,187.3,187.17,99.09414918]
[1736889049214,2.6703,187.33,187.17,99.09414918]
[1736889049411,3.2064,187.34,187.17,99.09414918]
[1736889050209,2.6704,187.32,187.27,2.671]
[1736889050412,3.2064,187.34,187.17,99.09414918]
[1736889050612,2.6708,187.29,187.17,99.09414918]
[1736889051109,2.671,187.28,187.17,99.09414918]
[1736889052110,2.671,187.28,187.24,2.6715]
[1736889053003,195.0,187.33,187.17,4.8618]
[1736889053811,197.6703,187.33,187.17,4.8618]
[1736889054213,197.6703,187.33,187.28,2.6708]
[1736889054808,197.6703,187.33,187.29,2.6708]
[1736889055308,203.1703,187.33,187.29,2.6708]
[1736889055708,197.6703,187.33,187.29,2.6708]
[1736889056113,197.6703,187.33,187.3,2.6706]
[1736889059217,197.6703,187.33,187.31,2.6705]
[1736889060118,195.0,187.33,187.31,2.6705]
[1736889060320,5.5,187.37,187.22,5.5]
[1736889060918,2.6698,187.36,187.23,5.3431]
[1736889061321,2.6698,187.36,187.24,3.1444]
[1736889061525,2.6698,187.36,187.24,4.7015]
[1736889063821,2.6698,187.36,187.32,2.6703]
[1736889064422,2.6698,187.36,187.33,2.6702]
[1736889064621,8.1697,187.37,187.33,2.6702]
[1736889065024,5.5,187.37,187.34,2.6701]
[1736889066226,8.1698,187.37,187.33,2.6702]
[1736889066417,5.5,187.37,187.33,2.6702]
[1736889067630,8.1697,187.37,187.33,2.6702]
[1736889070726,8.1697,187.37,187.34,2.6701]
[1736889077434,5.5,187.39,187.37,2.6696]
[1736889077635,148.40916402,187.49,187.24,4.7015]
[1736889077826,5.5,187.45,187.25,12.70777514]
[1736889078027,8.1686,187.45,187.41,2.669]
[1736889078227,5.5,187.45,187.3,5.3414]
[1736889078435,5.5,187.45,187.31,4.8674]
[1736889079635,2.6689,187.43,187.39,2.6693]
[1736889080236,5.5,187.45,187.31,4.8674]
[1736889080438,2.6689,187.43,187.38,2.6694]
[1736889081939,2.669,187.42,187.38,2.6694]
[1736889082143,5.5,187.45,187.31,4.8674]
[1736889082339,5.5,187.45,187.31,3.211]
[1736889082635,5.5,187.45,187.26,29.47437412]
[1736889082941,0.89737933,187.44,187.26,29.47437412]
[1736889083238,2.6698,187.37,187.33,2.6701]
[1736889083440,8.1698,187.37,187.33,2.6701]
[1736889083633,5.5,187.37,187.25,12.33209353]
[1736889084041,5.5,187.37,187.35,2.6699]
[1736889087448,148.40916402,187.52,187.25,4.9635]
[1736889087640,4.7941,187.49,187.26,12.70777514]
[1736889087846,4.7941,187.49,187.27,12.70777514]
[1736889088142,5.5,187.48,187.28,12.70777514]
[1736889088345,12.52327686,187.46,187.3,5.3412]
[1736889088554,12.52327686,187.46,187.31,7.0746]
[1736889088747,12.52327686,187.46,187.31,14.44319353]
[1736889088939,12.52327686,187.46,187.41,2.669]
[1736889089143,2.6686,187.45,187.41,2.669]
[1736889090746,2.6686,187.45,187.42,2.669]
[1736889091846,12.52317686,187.46,187.42,2.669]
[1736889093443,2.6685,187.45,187.42,2.669]
[1736889097548,9.85477686,187.46,187.32,3.2602]
[1736889097745,2.6689,187.43,187.4,2.6691]
[1736889097940,9.85477686,187.46,187.33,97.05590917]
[1736889098142,9.85477686,187.46,187.45,2.6685]
[1736889098347,9.85477686,187.46,187.34,5.3401]
[1736889099943,153.74206402,187.6,187.35,5.3398]
[1736889100249,11.32625226,187.59,187.33,97.05590917]
[1736889100438,0.89685226,187.58,187.47,2.6681]
[1736889100847,2.6677,187.51,187.47,2.6681]
[1736889101842,2.6678,187.5,187.39,3.3109]
[1736889102037,5.5,187.52,187.45,2.6684]
[1736889102236,5.5,187.52,187.39,3.3109]
[1736889102449,2.6679,187.5,187.39,3.3109]
[1736889102640,4.9294,187.59,187.39,3.3109]
[1736889102641,5.5,187.51,187.39,3.3109]
[1736889102944,4.9294,187.59,187.39,3.3109]
[1736889103150,5.5,187.58,187.4,5.3385]
[1736889103451,5.5,187.58,187.51,2.6675]
[1736889104148,2.6671,187.55,187.51,2.6675]
[1736889105053,2.6671,187.56,187.52,2.6675]
[1736889105449,8.1671,187.56,187.52,2.6675]
[1736889106052,2.6671,187.55,187.52,2.6675]
[1736889108058,4.9294,187.59,187.41,5.5]
[1736889108354,8.8087,187.59,187.41,5.5]
[1736889108552,1.7156,187.59,187.41,5.5]
[1736889108755,5.5,187.61,187.43,6.59620723]
[1736889109148,2.6665,187.6,187.55,2.667]
[1736889111058,2.6665,187.6,187.56,2.6669]
[1736889112655,2.6665,187.6,187.57,2.6668]
[1736889119656,5.5,187.61,187.46,4.8785]
[1736889119960,5.5,187.61,187.54,2.6671]
[1736889120352,2.6667,187.58,187.54,2.6671]
[1736889120557,2.6667,187.58,187.46,4.8785]
[1736889120762,2.6667,187.58,187.55,2.6671]
[1736889122358,5.5,187.61,187.46,4.8785]
[1736889122960,2.667,187.56,187.52,2.6674]
[1736889123260,5.5,187.61,187.52,2.6674]
[1736889123561,2.6671,187.56,187.52,2.6674]
[1736889129165,2.6672,187.55,187.52,2.6674]
[1736889130868,2.6672,187.55,187.46,3.2433]
[1736889130869,5.5,187.54,187.43,6.59620723]
[1736889131173,195.0,187.53,187.39,1.5538]
[1736889131669,2.6682,187.48,187.43,2.6687]
[1736889131870,5.5,187.47,187.43,2.6687]
[1736889132173,2.6684,187.46,187.41,2.669]
[1736889132372,2.6684,187.46,187.38,1.5858]
[1736889133378,2.6684,187.46,187.42,2.6688]
[1736889136482,5.5,187.47,187.38,1.5858]
[1736889136692,8.1683,187.47,187.38,1.5858]
[1736889137984,8.1683,187.47,187.42,2.6688]
[1736889139986,8.1683,187.47,187.38,1.5858]
[1736889140184,1.592,187.5,187.38,1.5858]
[1736889140384,7.092,187.5,187.38,1.5858]
[1736889140985,9.7598,187.5,187.38,1.5858]
[1736889141284,7.092,187.5,187.38,1.5858]
[1736889141480,5.5,187.49,187.38,1.5858]
[1736889141683,5.5,187.49,187.36,1.5538]
[1736889142987,8.168,187.49,187.45,2.6685]
[1736889143191,2.668,187.49,187.45,2.6685]
[1736889143882,2.6683,187.47,187.43,2.6688]
[1736889145590,2.6683,187.47,187.44,2.6686]
[1736889145792,9.7599,187.5,187.36,1.5538]
[1736889146291,9.7599,187.5,187.46,2.6684]
[1736889146687,7.092,187.5,187.36,1.5538]
[1736889146893,10.41708867,187.52,187.36,1.5538]
[1736889147590,10.41708867,187.52,187.51,2.6677]
[1736889147789,5.5,187.54,187.51,2.6677]
[1736889148190,5.5,187.55,187.49,2.668]
[1736889149090,2.6674,187.53,187.49,2.668]
[1736889150797,2.6673,187.54,187.5,2.6678]
[1736889156899,2.6674,187.53,187.5,2.6678]
[1736889158298,2.6674,187.53,187.48,2.668]
[1736889158702,2.6675,187.52,187.48,2.668]
[1736889159601,2.6675,187.52,187.49,2.6679]
[1736889162508,2.6675,187.52,187.48,2.6681]
[1736889164205,2.6675,187.52,187.41,1.6174]
[1736889164408,2.6679,187.5,187.46,2.6683]
[1736889167508,2.6679,187.5,187.39,1.5727]
[1736889167509,195.0,187.54,187.39,1.5727]
[1736889168008,195.0,187.54,187.36,3.1039]
[1736889168009,0.89692181,187.53,187.36,3.1039]
[1736889168206,195.89692181,187.52,187.4,2.6692]
[1736889168509,0.89692181,187.51,187.4,2.6692]
[1736889168704,195.0,187.5,187.41,2.6691]
[1736889170213,2.6687,187.44,187.41,2.6691]
[1736889170417,8.1687,187.44,187.41,2.6691]
[1736889170913,8.1687,187.44,187.42,2.669]
[1736889171814,8.1687,187.44,187.34,1.546]
[1736889172016,5.5,187.44,187.34,1.546]
[1736889172213,2.669,187.42,187.34,1.546]
[1736889172412,5.5,187.44,187.37,2.6696]
[1736889172915,2.6691,187.41,187.37,2.6696]
[1736889177619,2.6697,187.37,187.33,2.6702]
[1736889177915,5.5,187.37,187.32,96.54183767]
[1736889178820,5.5,187.37,187.27,1.6081]
[1736889179211,2.6698,187.36,187.32,2.6703]
[1736889182618,200.5,187.37,187.27,2.671]
[1736889182818,4.8698,187.35,187.27,2.671]
[1736889183024,4.8698,187.35,187.23,94.69774666]
[1736889183824,2.6707,187.3,187.26,2.6712]
[1736889185724,5.5,187.3,187.23,94.69774666]
[1736889187127,2.671,187.28,187.24,2.6715]
[1736889187429,5.5,187.3,187.23,94.69774666]
[1736889187927,5.5,187.3,187.26,2.6711]
[1736889188526,5.5,187.3,187.27,2.671]
[1736889190030,8.1707,187.3,187.26,2.6712]
[1736889190327,5.5,187.3,187.21,6.16883453]
[1736889191526,5.5,187.3,187.26,2.6711]
[1736889194327,5.5,187.3,187.27,2.6711]
[1736889195829,2.6709,187.28,187.24,2.6715]
[1736889196323,2.6711,187.27,187.23,2.6716]
[1736889200627,5.5,187.3,187.2,3.3453]
[1736889200820,2.6712,187.26,187.22,2.6718]
[1736889206533,5.5,187.3,187.19,94.72760475]
[1736889207434,5.5,187.3,187.16,1.5956]
[1736889208230,2.6719,187.22,187.18,2.6723]
[1736889208431,8.1719,187.22,187.18,2.6723]
[1736889208833,5.5,187.22,187.21,2.6719]
[1736889209126,5.5,187.26,187.16,1.5956]
[1736889209333,2.671,187.28,187.24,2.6714]
[1736889209636,5.5,187.28,187.16,1.5956]
[1736889210134,5.5,187.28,187.24,2.6714]
[1736889211236,5.5,187.28,187.16,1.5956]
[1736889211436,5.5,187.28,187.2,2.6719]
[1736889211637,2.6714,187.25,187.16,1.5956]
[1736889212539,5.5,187.28,187.16,1.5956]
[1736889212738,2.6718,187.23,187.16,1.5956]
[1736889213738,3.3496,187.27,187.16,1.5956]
[1736889213739,2.6718,187.22,187.18,2.6724]
[1736889215942,2.6718,187.22,187.19,2.6722]
[1736889216943,3.3496,187.27,187.19,2.6722]
[1736889217242,2.6717,187.23,187.19,2.6722]
[1736889222046,4.9265,187.27,187.15,6.27073653]
[1736889222248,4.9265,187.27,187.17,2.6724]
[1736889223051,2.6721,187.21,187.17,2.6724]
[1736889223250,8.1721,187.21,187.17,2.6724]
[1736889225144,5.5,187.21,187.19,2.6722]
[1736889225653,5.5,187.21,187.15,6.27073653]
[1736889225842,5.5,187.21,187.18,2.6723]
[1736889229053,8.1719,187.21,187.18,2.6723]
[1736889250170,2.6713,187.26,187.22,2.6718]
[1736889250469,5.5,187.27,187.16,1.6161]
[1736889250771,5.5,187.26,187.16,1.6161]
[1736889250966,5.5,187.26,187.16,31.28488469]
[1736889251166,5.5,187.26,187.17,12.75721823]
[1736889251366,2.6721,187.2,187.16,29.66878469]
[1736889251563,2.6721,187.2,187.15,38.61222122]
[1736889252473,2.6721,187.2,187.15,8.94343653]
[1736889252867,2.6721,187.2,187.15,6.27073653]
[1736889253063,2.6721,187.2,187.16,2.6726]
[1736889254076,2.672,187.21,187.17,2.6725]
[1736889255673,2.6717,187.23,187.19,2.6722]
[1736889256266,5.5,187.24,187.16,12.77711588]
[1736889256470,195.0,187.25,187.15,6.27073653]
[1736889256673,195.0,187.25,187.16,14.35605167]
[1736889256975,195.0,187.25,187.23,2.6716]
[1736889258370,195.0,187.25,187.18,12.77036789]
[1736889258577,195.0,187.25,187.19,12.77036789]
[1736889258776,195.0,187.25,187.18,12.77036789]
[1736889258977,195.0,187.25,187.19,12.77036789]
[1736889259177,195.0,187.25,187.21,2.6718]
[1736889260880,195.0,187.25,187.22,2.6718]
[1736889265187,5.5,187.27,187.24,2.6715]
[1736889270389,8.1711,187.27,187.24,2.6715]
[1736889279496,2.6712,187.26,187.24,2.6715]
[1736889282799,2.6712,187.26,187.23,2.6716]
[1736889292704,5.5,187.27,187.18,20.17661257]
[1736889292905,5.5,187.29,187.19,12.7594164]
[1736889293906,2.6711,187.27,187.23,2.6716]
[1736889297214,2.6711,187.27,187.24,2.6715]
[1736889300107,2.6711,187.27,187.23,2.6716]
[1736889303613,2.6711,187.27,187.24,2.6715]
[1736889305108,5.5,187.29,187.2,12.77362453]
[1736889305310,195.0,187.28,187.19,29.66878469]
[1736889305508,195.0,187.27,187.19,7.41719617]
[1736889305904,2.6721,187.2,187.19,7.41719617]
[1736889306115,8.1721,187.2,187.19,7.41719617]
[1736889306314,8.1721,187.2,187.19,2.26239617]
[1736889306511,2.6722,187.19,187.18,41.40720574]
[1736889306809,5.5,187.2,187.13,4.80255878]
[1736889307008,5.5,187.2,187.14,2.6729]
[1736889307205,2.6725,187.18,187.14,2.6729]
[1736889307415,2.6725,187.18,187.13,4.80255878]
[1736889307613,2.6725,187.18,187.15,2.6728]
[1736889310715,2.6723,187.19,187.12,100.59803298]
[1736889311017,5.5,187.2,187.12,100.59803298]
[1736889311314,5.5,187.2,187.18,2.6723]
[1736889312319,2.6717,187.23,187.12,100.59803298]
[1736889312510,200.5,187.25,187.12,113.35813639]
[1736889312715,195.0,187.25,187.12,100.59803298]
[1736889312918,5.5,187.26,187.13,12.76010341]
[1736889313218,5.5,187.28,187.14,14.31590341]
[1736889313418,5.5,187.28,187.15,1.6337]
[1736889314016,2.6715,187.25,187.2,2.672]
[1736889314514,2.6713,187.26,187.18,2.6722]
[1736889314719,5.5,187.27,187.15,14.39380341]
[1736889315116,5.5,187.27,187.15,1.6337]
[1736889315316,2.6713,187.26,187.22,2.6717]
[1736889316418,2.6713,187.26,187.15,14.39380341]
[1736889316718,5.5,187.27,187.15,1.6337]
[1736889317422,2.6719,187.22,187.17,2.6724]
[1736889317615,5.5,187.27,187.15,1.6337]